fUST/lending_fUST_20250226
["ID","MTS","AMOUNT","RATE_DAILY","PERIOD"]
[354537198,1740559161229,-731.81,0.00040821,2]
[354537199,1740559161255,-500.0,0.00040821,2]
[354537200,1740559161282,-500.0,0.0004087,2]
[354537201,1740559161307,-500.0,0.0004087,2]
[354537202,1740559161332,-500.0,0.0004087,2]
[354537203,1740559161358,-500.0,0.00041085,2]
[354537204,1740559161383,-500.0,0.00041085,2]
[354537205,1740559161409,-546.95,0.00041094,2]
[354537206,1740559161437,-547.06,0.00041095,2]
[354537207,1740559161462,-551.64,0.00041095,2]
[354537208,1740559161488,-500.0,0.00041095,120]
[354537209,1740559161513,-525.72,0.00041095,2]
[354537210,1740559161543,-618.71,0.00041095,2]
[354537211,1740559161569,-2223.8,0.00041095,2]
[354537212,1740559161593,-1999.0,0.00041095,120]
[354537213,1740559161619,-827.87,0.00041095,2]
[354537214,1740559161644,-3149.8,0.00041095,2]
[354537215,1740559161670,-531.34,0.00041095,2]
[354537216,1740559161695,-1118.51,0.00041095,2]
[354537217,1740559161721,-500.0,0.00041095,120]
[354537218,1740559161746,-731.81,0.00041095,2]
[354537219,1740559161772,-448.96368673,0.00041095,2]
[354537220,1740559161798,-500.0,0.00041144,2]
[354537221,1740559161823,-500.0,0.00041144,2]
[354537222,1740559161848,-500.0,0.00041144,2]
[354537223,1740559161873,-500.0,0.00041359,2]
[354537224,1740559161897,-500.0,0.00041359,2]
[354537225,1740559161921,-546.95,0.00041368,2]
[354537226,1740559161947,-547.06,0.00041369,2]
[354537227,1740559161974,-551.64,0.00041369,2]
[354537228,1740559161999,-525.72,0.00041369,2]
[354537229,1740559162026,-618.71,0.00041369,2]
[354537230,1740559162050,-2223.8,0.00041369,2]
[354537231,1740559162076,-827.87,0.00041369,2]
[354537232,1740559162102,-3149.8,0.00041369,2]
[354537233,1740559162126,-531.34,0.00041369,2]
[354537234,1740559162152,-1118.51,0.00041369,2]
[354537235,1740559162177,-731.81,0.00041369,2]
[354537236,1740559162201,-330.7300259,0.00041418,2]
[354537237,1740559162226,-477.40715086,0.00041418,2]
[354537238,1740559162250,-500.0,0.00041418,2]
[354537239,1740559162274,-500.0,0.00041633,2]
[354537240,1740559162299,-500.0,0.00041633,2]
[354537241,1740559162323,-546.95,0.00041642,2]
[354537242,1740559162349,-547.06,0.00041643,2]
[354537243,1740559162374,-551.64,0.00041643,2]
[354537244,1740559162398,-525.72,0.00041643,2]
[354537245,1740559162425,-618.71,0.00041643,2]
[354537246,1740559162453,-2223.8,0.00041643,2]
[354537247,1740559162479,-827.87,0.00041643,2]
[354537248,1740559162503,-3149.8,0.00041643,2]
[354537249,1740559162533,-531.34,0.00041643,2]
[354537250,1740559162559,-1118.51,0.00041643,2]
[354537251,1740559162586,-731.81,0.00041643,2]
[354537252,1740559162611,-1000.0,0.00041652,10]
[354537253,1740559162637,-500.0,0.00041692,2]
[354537254,1740559162662,-503.19341236,0.00041907,2]
[354537255,1740559162686,-500.0,0.00041907,2]
[354537256,1740559162710,-546.95,0.00041916,2]
[354537257,1740559162734,-547.22234021,0.00041917,2]
[354537258,1740559162758,-551.839033,0.00041917,2]
[354537259,1740559162786,-525.91002927,0.00041917,2]
[354537260,1740559162811,-618.87,0.00041917,2]
[354537261,1740559162838,-2223.85896889,0.00041917,2]
[354537262,1740559162864,-828.08,0.00041917,2]
[354537263,1740559162891,-3149.82,0.00041917,2]
[354537264,1740559162917,-531.40930597,0.00041917,2]
[354537265,1740559162943,-1118.54194057,0.00041917,2]
[354537266,1740559162968,-731.81,0.00041917,2]
[354537267,1740559162995,-194.00438311,0.00041966,2]
[354537268,1740559163021,-500.0,0.00042181,2]
[354537269,1740559163047,-546.95,0.0004219,2]
[354537270,1740559163072,-731.85,0.00042191,2]
[354537271,1740559163099,-500.0,0.00042455,2]
[354537272,1740559163124,-546.95,0.00042464,2]
[354537273,1740559163149,-159.86,0.000426,30]
[354537274,1740559163175,-500.0,0.00042729,2]
[354537275,1740559163200,-546.95,0.00042738,2]
[354537276,1740559163224,-500.0,0.00043003,2]
[354537277,1740559163251,-546.95,0.00043012,2]
[354537278,1740559163275,-152.45243897,0.00043121,30]
[354537279,1740559163300,-151.0,0.00043121,30]
[354537280,1740559163324,-399.1068796,0.00043276,2]
[354537281,1740559163349,-546.95,0.00043286,2]
[354537282,1740559163373,-546.95,0.0004356,2]
[354537283,1740559163398,-546.95,0.00043834,2]
[354537284,1740559163424,-1000.0,0.00043852,10]
[354537285,1740559163456,-4820.46,0.000439,30]
[354537286,1740559163482,-546.95,0.00044108,120]
[354537287,1740559163507,-150.0,0.000442,2]
[354537288,1740559163533,-546.95,0.00044382,120]
[354537289,1740559163557,-1000.0,0.00044477,10]
[354537290,1740559163580,-166.1,0.0004449,30]
[354537291,1740559163605,-547.18996244,0.00044656,120]
[354537292,1740559163630,-1999.0,0.00045479,120]
[354537293,1740559163656,-182.71,0.00045859,30]
[354537294,1740559163681,-200.981,0.00047228,30]
[354537295,1740559163706,-500.0,0.00047945,2]
[354537296,1740559163732,-500.0,0.00047945,2]
[354537297,1740559163758,-500.0,0.00047945,2]
[354537298,1740559163787,-2126.27,0.00048,42]
[354537299,1740559163816,-2126.27,0.00048,42]
[354537300,1740559163845,-2126.27,0.00048,42]
[354537301,1740559163873,-2126.27,0.00048,42]
[354537302,1740559163901,-2126.27,0.00048,42]
[354537303,1740559163928,-2126.27,0.00048,42]
[354537304,1740559163956,-2126.27,0.00048,42]
[354537305,1740559163984,-2126.27,0.00048,42]
[354537306,1740559164013,-2126.27,0.00048,42]
[354537307,1740559164042,-2126.27,0.00048,42]
[354537308,1740559164068,-2126.27,0.00048,42]
[354537309,1740559164095,-2126.27,0.00048,42]
[354537310,1740559164120,-987.71208,0.00048484,2]
[354537311,1740559164144,-221.0791,0.00048597,30]
[354537312,1740559164288,-1999.0,0.00049863,120]
[354537313,1740559164315,-302.0,0.00049966,30]
[354537314,1740559164420,500.33056273,0.00035616,2]
[354537315,1740559164458,500.0,0.00035616,2]
[354537316,1740559164487,500.0,0.00035616,2]
[354537317,1740559164517,500.0,0.00035616,2]
[354537318,1740559164551,502.75392156,0.00035888,2]
[354537319,1740559164578,10004.9480928,0.00043121,2]
[354537320,1740559164607,500.0,0.00035616,2]
[354537321,1740559164636,500.0,0.00035616,2]
[354537322,1740559164665,500.0,0.00035616,2]
[354537323,1740559164693,500.0,0.0003589,2]
[354537324,1740559164722,500.0,0.00038345,2]
[354537325,1740559164910,500.0,0.00035616,2]
[354537326,1740559164940,500.0,0.00035616,2]
[354537327,1740559164969,500.0,0.00035616,2]
[354537328,1740559164999,500.0,0.00035616,2]
[354537329,1740559165028,1000.0,0.00038356,120]
[354537330,1740559165058,605.67,0.00035616,2]
[354537331,1740559165087,500.0,0.00038345,2]
[354537332,1740559165116,500.0,0.00035616,2]
[354537333,1740559165145,500.0,0.0003589,2]
[354537334,1740559165190,500.0,0.00036163,15]
[354537335,1740559165219,500.0,0.00035616,2]
[354537336,1740559165248,500.0,0.0003589,2]
[354537337,1740559165279,500.0,0.00040438,5]
[354537338,1740559165312,1000.0,0.00045917,10]
[354537339,1740559165346,500.0,0.00035616,2]
[354537340,1740559165374,500.0,0.0003589,2]
[354537341,1740559165404,500.0,0.00035616,2]
[354537342,1740559165440,503.28852007,0.00037856,2]
[354537343,1740559165468,500.0,0.00035616,2]
[354537344,1740559165500,500.0,0.00035616,2]
[354537345,1740559165531,500.0,0.00035616,2]
[354537346,1740559165559,500.0,0.00035616,2]
[354537347,1740559165588,500.0,0.00035616,2]
[354537348,1740559165615,506.35499529,0.00035616,2]
[354537349,1740559165647,500.0,0.00036163,15]
[354537350,1740559165676,500.0,0.00036163,2]
[354537351,1740559165705,500.0,0.00036163,2]
[354537352,1740559165734,500.0,0.00035616,2]
[354537353,1740559165762,500.0,0.0003589,2]
[354537354,1740559165791,500.0,0.00037856,2]
[354537355,1740559165821,500.0,0.00036163,2]
[354537356,1740559165853,500.0,0.00035616,2]
[354537357,1740559166671,500.0,0.00035616,2]
[354537358,1740559169499,527.8,0.00035616,2]
[354537359,1740559170445,500.0,0.00035616,2]
[354537360,1740559681520,-19603.87691479,0.00028,3]
[354537361,1740559681547,-187.3393777,0.00033777,2]
[354537362,1740559681574,-169.4629032,0.00034815,2]
[354537363,1740559681600,-161.49461176,0.00035516,2]
[354537364,1740559681632,-367.542311,0.00035616,2]
[354537365,1740559681664,-500.12359795,0.00035616,2]
[354537366,1740559681692,-500.0,0.00035616,2]
[354537367,1740559681720,-500.0,0.00035616,2]
[354537368,1740559681748,-500.0,0.00035616,2]
[354537369,1740559681774,-500.0,0.00035616,2]
[354537370,1740559681801,-500.0,0.00035616,2]
[354537371,1740559681828,-500.0,0.00035616,2]
[354537372,1740559681855,-500.0,0.00035616,2]
[354537373,1740559681882,-169.73733752,0.00035616,2]
[354537374,1740559681907,-500.0,0.00035616,2]
[354537375,1740559681933,-508.19,0.00035616,2]
[354537376,1740559681958,-501.81407955,0.00035616,2]
[354537377,1740559681984,-500.0,0.00035616,2]
[354537378,1740559682009,-500.0,0.00035616,2]
[354537379,1740559682036,-500.0,0.00035616,2]
[354537380,1740559682061,-500.0,0.00035616,2]
[354537381,1740559682087,-500.0,0.00035616,2]
[354537382,1740559682111,-500.0,0.00035616,2]
[354537383,1740559682136,-500.0,0.00035616,2]
[354537384,1740559682161,-500.0,0.00035616,2]
[354537385,1740559682187,-500.0,0.00035616,2]
[354537386,1740559682213,-500.0,0.00035616,2]
[354537387,1740559682238,-500.73959956,0.00035616,2]
[354537388,1740559682264,-500.0,0.00035616,2]
[354537389,1740559682288,-500.0,0.00035616,2]
[354537390,1740559682313,-500.0,0.00035616,2]
[354537391,1740559682338,-500.0,0.00035616,2]
[354537392,1740559682366,-500.0,0.00035616,2]
[354537393,1740559682391,-500.0,0.00035616,2]
[354537394,1740559682418,-500.0,0.00035616,2]
[354537395,1740559682443,-500.0,0.00035616,2]
[354537396,1740559682470,-500.0,0.00035616,2]
[354537397,1740559682495,-500.0,0.00035616,2]
[354537398,1740559682521,-500.0,0.00035616,2]
[354537399,1740559682546,-500.0,0.00035616,2]
[354537400,1740559682570,-500.0,0.00035616,2]
[354537401,1740559682596,-500.0,0.00035616,2]
[354537402,1740559682624,-500.0,0.00035616,2]
[354537403,1740559682650,-500.0,0.00035616,2]
[354537404,1740559682676,-500.0,0.00035616,2]
[354537405,1740559682702,-500.0,0.00035616,2]
[354537406,1740559682729,-500.0,0.00035616,2]
[354537407,1740559682754,-500.0,0.00035616,2]
[354537408,1740559682779,-500.0,0.00035616,2]
[354537409,1740559682804,-500.0,0.00035616,2]
[354537410,1740559682829,-500.0,0.00035616,2]
[354537411,1740559682853,-500.0,0.00035616,2]
[354537412,1740559682877,-500.0,0.00035616,2]
[354537413,1740559682902,-500.0,0.00035616,2]
[354537414,1740559682927,-500.0,0.00035616,2]
[354537415,1740559682953,-500.0,0.00035616,2]
[354537416,1740559682977,-501.13971128,0.00035616,2]
[354537417,1740559683002,-500.0,0.00035616,2]
[354537418,1740559683029,-500.0,0.00035616,2]
[354537419,1740559683059,-500.0,0.00035616,2]
[354537420,1740559683092,-500.0,0.00035616,2]
[354537421,1740559683323,-500.0,0.00035616,2]
[354537422,1740559683352,-504.33196933,0.00035616,2]
[354537423,1740559683379,-500.51702038,0.00035616,2]
[354537424,1740559683407,-500.0,0.00035616,2]
[354537425,1740559683438,-500.0,0.00035616,2]
[354537426,1740559683465,-500.0,0.00035616,2]
[354537427,1740559683492,-500.0,0.00035616,2]
[354537428,1740559683520,-501.76448099,0.00035616,2]
[354537429,1740559683548,-500.0,0.00035616,2]
[354537430,1740559683575,-500.0,0.00035616,2]
[354537431,1740559683602,-500.0,0.00035616,2]
[354537432,1740559683631,-500.0,0.00035616,2]
[354537433,1740559683660,-500.0,0.00035616,2]
[354537434,1740559683689,-500.0,0.00035616,2]
[354537435,1740559683719,-500.0,0.00035616,2]
[354537436,1740559683748,-500.0,0.00035616,2]
[354537437,1740559683774,-500.0,0.00035616,2]
[354537438,1740559683802,-500.0,0.00035616,2]
[354537439,1740559683834,-500.0,0.00035616,2]
[354537440,1740559683862,-501.34536173,0.00035616,2]
[354537441,1740559683890,-500.0,0.00035616,2]
[354537442,1740559683920,-208.40389348,0.00035616,2]
[354537443,1740559683948,-500.0,0.00035616,2]
[354537444,1740559683979,-500.0,0.00035616,2]
[354537445,1740559684010,-512.66101251,0.00035616,2]
[354537446,1740559684041,-500.0,0.00035616,2]
[354537447,1740559684072,-500.0,0.00035616,2]
[354537448,1740559684105,-500.0,0.00035616,2]
[354537449,1740559684136,-560.99881457,0.00035616,2]
[354537450,1740559684168,-500.0,0.00035616,2]
[354537451,1740559684197,-500.0,0.00035616,2]
[354537452,1740559684228,-500.0,0.00035616,2]
[354537453,1740559684256,-500.0,0.00035616,2]
[354537454,1740559684284,-500.96431291,0.00035616,2]
[354537455,1740559684311,-500.0,0.00035616,2]
[354537456,1740559684337,-500.0,0.00035616,2]
[354537457,1740559684364,-500.0,0.00035616,2]
[354537458,1740559684390,-249.88080859,0.00035616,2]
[354537459,1740559684416,-251.53663515,0.00035616,2]
[354537460,1740559684442,-500.0,0.00035616,2]
[354537461,1740559684472,-500.0,0.00035616,2]
[354537462,1740559684500,-500.0,0.00035616,2]
[354537463,1740559684528,-340.72929934,0.00035616,2]
[354537464,1740559684554,-500.0,0.00035616,2]
[354537465,1740559684580,-500.72884407,0.00035616,2]
[354537466,1740559684607,-500.0,0.00035616,2]
[354537467,1740559684639,-500.0,0.00035616,2]
[354537468,1740559684667,-500.0,0.00035616,2]
[354537469,1740559684694,-500.0,0.00035616,2]
[354537470,1740559684723,-507.46266855,0.00035616,2]
[354537471,1740559684750,-500.0,0.00035616,2]
[354537472,1740559684778,-500.77137122,0.00035616,2]
[354537473,1740559684807,-525.56723237,0.00035616,2]
[354537474,1740559684836,-500.0,0.00035616,2]
[354537475,1740559684862,-500.0,0.00035616,2]
[354537476,1740559684889,-503.76681652,0.00035616,2]
[354537477,1740559684915,-500.0,0.00035616,2]
[354537478,1740559684942,-500.0,0.00035616,2]
[354537479,1740559684969,-500.84354543,0.00035616,2]
[354537480,1740559684998,-500.0,0.00035616,2]
[354537481,1740559685026,-554.54,0.00035616,2]
[354537482,1740559685053,-500.0,0.00035616,2]
[354537483,1740559685081,-500.0,0.00035616,2]
[354537484,1740559685109,-500.0,0.00035616,2]
[354537485,1740559685134,-500.0,0.00035616,2]
[354537486,1740559685162,-500.0,0.00035616,2]
[354537487,1740559685191,-506.90601719,0.00035616,2]
[354537488,1740559685219,-500.0,0.00035616,2]
[354537489,1740559685250,-1000.0,0.00035616,2]
[354537490,1740559685276,-504.17831705,0.00035616,2]
[354537491,1740559685303,-500.0,0.00035616,2]
[354537492,1740559685329,-500.0,0.00035616,2]
[354537493,1740559685359,-500.0,0.00035616,2]
[354537494,1740559685386,-151.608241,0.00035616,2]
[354537495,1740559685412,-500.0,0.00035616,2]
[354537496,1740559685438,-500.0,0.00035616,2]
[354537497,1740559685464,-501.45752949,0.00035616,2]
[354537498,1740559685490,-500.0,0.00035616,2]
[354537499,1740559685515,-500.0,0.00035616,2]
[354537500,1740559685542,-500.0,0.00035616,2]
[354537501,1740559685567,-500.0,0.00035616,2]
[354537502,1740559685593,-501.17000459,0.00035616,2]
[354537503,1740559685619,-168.19095169,0.00035616,2]
[354537504,1740559685647,-500.0,0.00035616,2]
[354537505,1740559685672,-501.18446381,0.00035616,2]
[354537506,1740559685698,-501.36188712,0.00035616,2]
[354537507,1740559685726,-500.0,0.00035616,2]
[354537508,1740559685752,-500.0,0.00035616,2]
[354537509,1740559685777,-500.0,0.00035616,2]
[354537510,1740559685804,-500.0,0.00035616,2]
[354537511,1740559685829,-500.0,0.00035616,2]
[354537512,1740559685855,-500.0,0.00035616,2]
[354537513,1740559685880,-500.0,0.00035616,2]
[354537514,1740559685906,-500.0,0.00035616,2]
[354537515,1740559685932,-500.0,0.00035616,2]
[354537516,1740559685958,-500.0,0.00035616,2]
[354537517,1740559685987,-500.0,0.00035616,2]
[354537518,1740559686014,-500.0,0.00035616,2]
[354537519,1740559686041,-500.0,0.00035616,2]
[354537520,1740559686067,-500.0,0.00035616,2]
[354537521,1740559686094,-500.0,0.00035616,2]
[354537522,1740559686119,-500.0,0.00035616,2]
[354537523,1740559686145,-250.00584549,0.00035616,2]
[354537524,1740559686171,-422.59801857,0.00035616,2]
[354537525,1740559686196,-500.0,0.00035616,2]
[354537526,1740559686221,-500.0,0.00035616,2]
[354537527,1740559686249,-1226.24,0.00035616,2]
[354537528,1740559686276,-1226.24,0.00035616,2]
[354537529,1740559686303,-1226.24,0.00035616,2]
[354537530,1740559686329,-1226.24,0.00035616,2]
[354537531,1740559686360,-1226.24,0.00035616,2]
[354537532,1740559686394,-1226.24,0.00035616,2]
[354537533,1740559686421,-1226.24,0.00035616,2]
[354537534,1740559686448,-500.0,0.00035616,2]
[354537535,1740559686475,-500.0,0.00035616,2]
[354537536,1740559686501,-500.0,0.00035616,2]
[354537537,1740559686736,-500.0,0.00035616,2]
[354537538,1740559686764,-500.0,0.00035616,2]
[354537539,1740559686792,-500.0,0.00035616,2]
[354537540,1740559686819,-500.0,0.00035616,2]
[354537541,1740559686846,-500.0,0.00035616,2]
[354537542,1740559686876,-500.0,0.00035616,2]
[354537543,1740559686905,-500.0,0.00035616,2]
[354537544,1740559686930,-640.19550551,0.00035616,2]
[354537545,1740559686956,-500.0,0.00035616,2]
[354537546,1740559686983,-19601.91606613,0.00035616,2]
[354537547,1740559687016,-500.0,0.00035616,2]
[354537548,1740559687042,-500.0,0.00035616,2]
[354537549,1740559687070,-500.0,0.00035673,5]
[354537550,1740559687098,-500.0,0.00035673,5]
[354537551,1740559687125,-500.0,0.00035888,2]
[354537552,1740559687154,-1226.24,0.00035888,2]
[354537553,1740559687183,-500.0,0.00035889,2]
[354537554,1740559687211,-1226.24,0.00035889,2]
[354537555,1740559687241,-1226.24,0.00035889,2]
[354537556,1740559687268,-508.19,0.0003589,2]
[354537557,1740559687294,-500.0,0.0003589,2]
[354537558,1740559687320,-500.0,0.0003589,2]
[354537559,1740559687346,-500.0,0.0003589,2]
[354537560,1740559687372,-500.0,0.0003589,2]
[354537561,1740559687398,-500.0,0.0003589,2]
[354537562,1740559687424,-501.24530807,0.0003589,2]
[354537563,1740559687450,-500.0,0.0003589,2]
[354537564,1740559687476,-500.0,0.0003589,2]
[354537565,1740559687502,-500.0,0.0003589,2]
[354537566,1740559687529,-308.52862937,0.00036119,2]
[354537567,1740559687557,-1226.24,0.00036162,2]
[354537568,1740559687585,-1226.24,0.00036162,2]
[354537569,1740559687613,-500.0,0.00036162,2]
[354537570,1740559687644,-1226.24,0.00036163,2]
[354537571,1740559687671,-508.19,0.00036164,2]
[354537572,1740559687697,-500.0,0.00036164,2]
[354537573,1740559687724,-500.0,0.00036164,2]
[354537574,1740559687749,-500.0,0.00036164,2]
[354537575,1740559687775,-500.0,0.00036164,2]
[354537576,1740559687803,-500.0,0.00036164,2]
[354537577,1740559687830,-1226.24,0.00036435,2]
[354537578,1740559687858,-1226.24,0.00036437,2]
[354537579,1740559687884,-508.19,0.00036438,2]
[354537580,1740559687909,-590.38603385,0.00036438,2]
[354537581,1740559687935,-500.0,0.00036438,2]
[354537582,1740559687960,-500.0,0.00036438,2]
[354537583,1740559687987,-159.86,0.000365,7]
[354537584,1740559688014,-1226.24,0.0003671,2]
[354537585,1740559688043,-500.0,0.00036711,2]
[354537586,1740559688070,-508.19,0.00036712,2]
[354537587,1740559688097,-500.0,0.00036712,2]
[354537588,1740559688124,-500.0,0.00036712,2]
[354537589,1740559688153,-1226.24,0.00036984,2]
[354537590,1740559688181,-508.19,0.00036986,2]
[354537591,1740559688210,-500.0,0.00036986,2]
[354537592,1740559688240,-500.0,0.00036986,2]
[354537593,1740559688271,-1226.24,0.00037259,2]
[354537594,1740559688302,-508.19,0.0003726,2]
[354537595,1740559688332,-500.0,0.0003726,2]
[354537596,1740559688360,-153.66635093,0.0003726,2]
[354537597,1740559688389,-500.0,0.00037507,5]
[354537598,1740559688418,-1226.24,0.00037533,2]
[354537599,1740559688445,-508.19,0.00037534,2]
[354537600,1740559688471,-500.0,0.00037534,2]
[354537601,1740559688504,-1226.24,0.00037807,2]
[354537602,1740559688535,-1226.24,0.00037807,2]
[354537603,1740559688565,-1226.24,0.00037807,2]
[354537604,1740559688594,-1226.24,0.00037807,2]
[354537605,1740559688625,-1226.24,0.00037807,2]
[354537606,1740559688652,-508.19,0.00037808,2]
[354537607,1740559688680,-500.0,0.00037808,2]
[354537608,1740559688709,-500.0,0.00037856,2]
[354537609,1740559688736,-645.15975175,0.00037873,5]
[354537610,1740559688764,-500.0,0.00037873,5]
[354537611,1740559688796,-500.0,0.00037873,5]
[354537612,1740559688824,-615.87828274,0.00037873,5]
[354537613,1740559688852,-508.19,0.00038082,2]
[354537614,1740559688879,-500.0,0.00038082,2]
[354537615,1740559688907,-500.8498684,0.0003809,5]
[354537616,1740559688934,-568.15760644,0.0003809,5]
[354537617,1740559688962,-273.41762849,0.0003809,5]
[354537618,1740559688993,-500.0,0.0003809,5]
[354537619,1740559689020,-500.0,0.00038345,2]
[354537620,1740559689047,-500.0,0.00038345,2]
[354537621,1740559689072,-500.0,0.00038345,2]
[354537622,1740559689100,-500.0,0.00038345,2]
[354537623,1740559689125,-500.0,0.00038345,2]
[354537624,1740559689155,-500.0,0.00038345,2]
[354537625,1740559689181,-500.0,0.00038345,2]
[354537626,1740559689208,-500.83049222,0.00038345,2]
[354537627,1740559689235,-500.0,0.00038345,2]
[354537628,1740559689262,-500.0,0.00038345,2]
[354537629,1740559689288,-500.0,0.00038345,2]
[354537630,1740559689317,-502.3162215,0.00038345,2]
[354537631,1740559689345,-500.0,0.00038345,2]
[354537632,1740559689372,-500.25633186,0.00038345,2]
[354537633,1740559689399,-500.0,0.00038345,2]
[354537634,1740559689426,-500.0,0.00038345,2]
[354537635,1740559689452,-500.3485424,0.00038345,2]
[354537636,1740559689481,-500.0,0.00038345,2]
[354537637,1740559689507,-500.0,0.00038345,2]
[354537638,1740559689534,-500.0,0.00038355,120]
[354537639,1740559689564,-500.0,0.00038355,2]
[354537640,1740559689591,-508.19,0.00038356,2]
[354537641,1740559689620,-500.0,0.00038356,2]
[354537642,1740559689652,-500.0,0.00038619,2]
[354537643,1740559689682,-500.0,0.00038619,2]
[354537644,1740559689710,-500.0,0.00038619,2]
[354537645,1740559689737,-500.0,0.00038619,2]
[354537646,1740559689766,-508.19,0.0003863,2]
[354537647,1740559689795,-500.0,0.0003863,2]
[354537648,1740559689822,-383.6700153,0.00038893,2]
[354537649,1740559689849,-500.0,0.00038893,2]
[354537650,1740559689876,-508.19,0.00038904,2]
[354537651,1740559689902,-295.45353942,0.00038904,2]
[354537652,1740559689929,-500.0,0.00039167,2]
[354537653,1740559690091,-508.19,0.00039178,2]
[354537654,1740559690138,-500.0,0.00039441,2]
[354537655,1740559690166,-508.19,0.00039452,2]
[354537656,1740559690194,-500.0,0.00039715,2]
[354537657,1740559690222,-508.19,0.00039726,2]
[354537658,1740559690250,-500.0,0.00039989,2]
[354537659,1740559690275,-508.19,0.0004,2]
[354537660,1740559690301,-500.0,0.00040263,2]
[354537661,1740559690326,-508.19,0.00040273,2]
[354537662,1740559690351,-500.0,0.00040537,2]
[354537663,1740559690376,-508.19,0.00040547,2]
[354537664,1740559690403,-500.0,0.00040811,2]
[354537665,1740559690427,-508.19,0.00040821,2]
[354537666,1740559690453,-500.0,0.00041085,2]
[354537667,1740559690477,-508.19,0.00041095,2]
[354537668,1740559690502,-500.0,0.00041095,120]
[354537669,1740559690529,-1999.0,0.00041095,120]
[354537670,1740559690553,-1000.0,0.00041152,10]
[354537671,1740559690578,-1000.0,0.00041152,10]
[354537672,1740559690604,-504.99898215,0.00041359,2]
[354537673,1740559690635,-508.19,0.00041369,2]
[354537674,1740559690662,-508.19,0.00041643,2]
[354537675,1740559690688,-3856.37,0.000417,30]
[354537676,1740559690713,-508.42731766,0.00041917,2]
[354537677,1740559690739,-500.0,0.00042438,14]
[354537678,1740559690765,-500.0,0.00042538,66]
[354537679,1740559690790,-500.0,0.00042638,3]
[354537680,1740559690816,-500.0,0.00042838,12]
[354537681,1740559690842,-516.75,0.00042938,46]
[354537682,1740559690866,-1000.0,0.00042987,10]
[354537683,1740559690891,-500.0,0.0004304,10]
[354537684,1740559690916,-1000.0,0.00043352,7]
[354537685,1740559690942,-151.0,0.00043617,30]
[354537686,1740559690966,-166.1,0.00044986,30]
[354537687,1740559690994,-150.0,0.000452,2]
[354537688,1740559691023,-500.0,0.00045478,120]
[354537689,1740559691050,-1999.0,0.00045479,120]
[354537690,1740559691076,-182.71,0.00046355,30]
[354537691,1740559691102,-200.981,0.00047724,30]
[354537692,1740559691132,-1850.0,0.00048,42]
[354537693,1740559691161,-1850.0,0.00048,42]
[354537694,1740559691192,-1850.0,0.00048,42]
[354537695,1740559691224,-1850.0,0.00048,42]
[354537696,1740559691266,-1850.0,0.00048,42]
[354537697,1740559691303,-1850.0,0.00048,42]